Cogmind - Beta 15 @@@ ROGUE MODE // 2025.10.09 @ 19:12:54 Player: Kotyk77 Result: Destroyed by D-53 Grenadier with Mini Grenade Launcher Performance ------------- Evolutions (0) 0 Regions Visited (4) 800 Robots Destroyed (8) 40 Value Destroyed (210) 210 Prototype IDs (23) 460 Alien Tech Used (0) 0 Bonus (300) 300 TOTAL SCORE: 1810 Bonus ------- Aligned with FarCom 300 Cogmind --------- Core Integrity 0/250 Matter 268/300 Energy 90/100 System Corruption 3% Temperature Cool (0) Movement Core (400) Ox7 Location -9/Mines Parts ------- > --- POWER (1) -------- (None) > --- PROPULSION (2) --- (None) > --- UTILITY (2) ------ Large Storage Unit Supersonic Drone Bay (0/1) > --- WEAPON (2) ------- Light Cannon > --- INVENTORY (15) --- Ion Engine Aluminum Leg Wheel Scrap Suit Signal Interpreter Hammer Peak State ------------ > --- POWER ------------ Ion Engine > --- PROPULSION ------- Wheel Compact Wheel > --- UTILITY ---------- Large Storage Unit Supersonic Drone Bay > --- WEAPON ----------- Beam Cannon Assault Rifle > --- INVENTORY -------- Ion Engine Aluminum Leg Wheel Compact Wheel Scrap Suit Signal Interpreter Improved Terrain Scanner Light Cannon Hammer [Rating: 15] Favorites ----------- Power Light Ion Engine Engine Light Ion Engine Propulsion Wheel Wheel Wheel Utility Improved Terrain Scanner Device Improved Terrain Scanner Storage Medium Storage Unit Weapon Medium Laser Energy Gun Medium Laser Energy Cannon Beam Cannon Ballistic Gun Assault Rifle Ballistic Cannon Light Cannon Build | -11 -10 -10 -10 -9 ------- Run | Yrd Mat Min Exi Min Slots Evolved . | . . . . . Power . | . . . . . Propulsion . | . . . . . Utility . | . . . . . Weapon . | . . . . . Parts Attached 19 | 7 1 7 1 3 Power 4 | 1 . 3 . . Engine 4 | 1 . 3 . . Core . | . . . . . Reactor . | . . . . . Propulsion 5 | 2 . 2 . 1 Treads . | . . . . . Leg . | . . . . . Wheel 5 | 2 . 2 . 1 Hover . | . . . . . Flight . | . . . . . Utility 5 | 2 1 . 1 1 Device 2 | 1 . . . 1 Storage 3 | 1 1 . 1 . Processor . | . . . . . Hackware . | . . . . . Protection . | . . . . . Artifact . | . . . . . Weapon 5 | 2 . 2 . 1 Energy Gun 2 | 2 . . . . Energy Cannon 1 | . . 1 . . Ballistic Gun 1 | . . 1 . . Ballistic Cannon 1 | . . . . 1 Launcher . | . . . . . Special Weapon . | . . . . . Impact Weapon . | . . . . . Slashing Weapon . | . . . . . Piercing Weapon . | . . . . . Special Melee Weapon . | . . . . . Unidentified Prototypes . | . . . . . Parts Lost 7 | . . . . 7 Power 1 | . . . . 1 Propulsion 3 | . . . . 3 Utility 1 | . . . . 1 Weapon 2 | . . . . 2 Highest Loss Streak 7 | . . . . 7 To Critical Strikes . | . . . . . Average Backups 8 | 3 6 9 9 8 Power . | . 1 1 1 1 Propulsion 3 | 1 3 4 3 2 Utility 1 | . . 1 2 2 Weapon 2 | . 1 3 2 1 Tool/Special . | . . . . . Unused Backups 11 | . . 4 1 6 Power 1 | . . . . 1 Propulsion 4 | . . 1 1 2 Utility 2 | . . . . 2 Weapon 4 | . . 3 . 1 Tool/Special . | . . . . . Average Slot Usage (%) 99 | . 100 100 100 94 Engine 13 | . 14 14 14 11 Wheel 27 | . 28 28 28 26 Device 13 | . 14 14 14 12 Storage 14 | . 14 14 14 14 Energy Gun 16 | . 28 22 . . Energy Cannon 5 | . . 2 14 12 Ballistic Gun 5 | . . 2 14 14 Peak Build Rating 15 | 9 9 10 11 15 Average Rating 9 | 6 9 9 10 13 On Entrance 7 | . 9 9 10 11 Naked Turns . | . . . . . Heaviest Build 31 | 12 17 21 31 31 Greatest Support 26 | 26 26 26 26 26 Greatest Overweight (x) 2 | 1 . . 1 2 Average Overweight (x) . | . . . . . Largest Inventory Capacity 15 | 8 10 10 15 15 Average Capacity 10 | 7 9 10 10 15 Most Carried 10 | 5 9 10 10 10 Average Carried 9 | 3 6 9 10 9 Final Capacity 15 | 8 10 10 15 15 Final Carried 10 | 5 9 10 10 7 Class Distribution -------------------- 59% | Mutant 40% | Scavenger-Mutant Dominant Class ---------------- Mutant | -10/Materials Mutant | -10/Mines Scavenger-Mutant | -10/Exiles Mutant | -9/Mines Resources | -11 -10 -10 -10 -9 ----------- Run | Yrd Mat Min Exi Min Matter Collected 362 | 236 32 94 . . Remotely . | . . . . . Salvage Created 324 | 11 32 281 . . Parts 14 | 2 1 11 . . Haulers Intercepted . | . . . . . Recyclers Shooed 1 | 1 . . . . Parts Field Recycled . | . . . . . Retrieved Matter . | . . . . . Parts Self-Destructed . | . . . . . Prevented . | . . . . . Kills | -11 -10 -10 -10 -9 ------- Run | Yrd Mat Min Exi Min Combat Hostiles Destroyed 5 | . 1 4 . . Guns 3 | . 1 2 . . Cannons 2 | . . 2 . . Classes Destroyed 4 | 1 1 2 . . Worker 1 | . . 1 . . Tunneler 1 | 1 . . . . Recycler 1 | . . 1 . . Grunt 5 | . 1 4 . . Best Kill Streak 3 | 1 1 3 . . Combat Bots Only 2 | . 1 2 . . Max Kills in Single Turn 1 | 1 1 1 . . Gunslinging . | . . . . . Exploded . | . . . . . Melee . | . . . . . Uniques/NPCs Destroyed . | . . . . . Combat | -11 -10 -10 -10 -9 -------- Run | Yrd Mat Min Exi Min Hostile Shots Fired 52 | . 3 24 . 25 Missed 11 | . . 5 . 6 Hits 41 | . 3 19 . 19 Projectile 41 | . 3 19 . 19 AOE 11 | . . . . 11 Damage Taken 1051 | . 34 245 . 772 Core 257 | . 10 92 . 155 Absorbed by Shields . | . . . . . Core Remaining (%) 100 | 100 . . . . Volleys Fired 34 | 6 8 19 . 1 Largest 2 | 2 2 2 . 2 Hottest 90 | 90 90 90 . 50 Shots Fired 68 | 12 16 38 . 2 Gun 63 | 12 16 34 . 1 Cannon 5 | . . 4 . 1 Launcher . | . . . . . Special . | . . . . . Kinetic 6 | . . 4 . 2 Thermal 62 | 12 16 34 . . Explosive . | . . . . . Electromagnetic . | . . . . . Robot Hit Streak 8 | 4 6 8 . 1 Robot Miss Streak 3 | 2 3 3 . 1 Penetration Max . | . . . . . Secondary Targets . | . . . . . Shots Hit Robots 45 | 8 9 27 . 1 Core Hits 19 | 2 3 13 . 1 Critical Kills . | . . . . . Critical Parts Destroyed . | . . . . . Critical Strikes 2 | . . 2 . . Burn 2 | . . 2 . . Melee Attacks . | . . . . . Impact . | . . . . . Slashing . | . . . . . Piercing . | . . . . . Sneak Attacks . | . . . . . Combat Hostiles . | . . . . . Follow-up Attacks . | . . . . . Damage Inflicted 559 | 96 108 340 . 15 Guns 507 | 96 108 288 . 15 Cannons 52 | . . 52 . . Explosions . | . . . . . Melee . | . . . . . Ramming . | . . . . . Kinetic 40 | . . 25 . 15 Thermal 519 | 96 108 315 . . Explosive . | . . . . . Electromagnetic . | . . . . . Impact . | . . . . . Slashing . | . . . . . Piercing . | . . . . . Highest Corruption 3 | . . . . 3 Average Corruption 3 | . . . . 3 Corruption Purged . | . . . . . Corruption Blocked . | . . . . . Overload Shots . | . . . . . Overflow Damage . | . . . . . Projectiles . | . . . . . Explosions . | . . . . . Melee . | . . . . . Knockbacks . | . . . . . Impact . | . . . . . Kinetic . | . . . . . Secondary . | . . . . . Self-Inflicted Damage . | . . . . . Shots . | . . . . . Rammed . | . . . . . Targets Rammed . | . . . . . Kicked . | . . . . . Crushed . | . . . . . Highest Temperature 366 | 120 148 366 . 11 Average Temperature 119 | 48 75 164 . 6 Received Heat Transfer 196 | . 18 138 . 40 Effects 2 | . . 2 . . Shutdowns 1 | . . 1 . . Short Circuit 1 | . . 1 . . Siege Activations . | . . . . . Martial Activations . | . . . . . Shielding Activations . | . . . . . Robots Disrupted . | . . . . . Combat Hostiles . | . . . . . Robots Corrupted . | . . . . . Combat Hostiles . | . . . . . Parts Fried . | . . . . . Impact Corruptions . | . . . . . Robots Melted . | . . . . . Combat Hostiles . | . . . . . Parts Melted 7 | . 2 5 . . Heat Transferred 1474 | 248 273 953 . . Parts Sabotaged . | . . . . . Parts Stolen . | . . . . . Parts Stripped . | . . . . . Power Chain Reactions . | . . . . . Alert | -11 -10 -10 -10 -9 ------- Run | Yrd Mat Min Exi Min Maximum Alert Level . | . . . . . Low Security (%) 100 | 100 100 100 . 100 Level 1 . | . . . . . Level 2 . | . . . . . Level 3 . | . . . . . Level 4 . | . . . . . Level 5 . | . . . . . High Security . | . . . . . Max Security . | . . . . . Peak Influence 42 | 5 30 42 . . Initial 3 | . . 3 . . Average 7 | . 8 9 . . Influence Increases 175 | 5 30 140 . . Destroy 0b10 Robot/C 100 | . 20 80 . . Destroy 0b10 Robot/NC 15 | 5 . 10 . . Destroy Leader 30 | . 10 20 . . Lose Combat Pursuer 30 | . . 30 . . Influence Decreases 175 | 5 20 132 18 . Entered New Map 25 | . . 7 18 . Time Decay 150 | 5 20 125 . . Squads Dispatched 2 | . 2 . . . Investigation 1 | . 1 . . . Extermination . | . . . . . Reinforcement 1 | . 1 . . . Assault . | . . . . . Garrison . | . . . . . Intercept . | . . . . . Searches Triggered . | . . . . . Construction Impeded . | . . . . . Haulers Reinforced . | . . . . . Active Scanning Responses . | . . . . . Cargo Convoy Interrupts . | . . . . . Stealth | -11 -10 -10 -10 -9 --------- Run | Yrd Mat Min Exi Min Distress Signals . | . . . . . Communications Jammed . | . . . . . Distress Signals . | . . . . . Times Spotted 29 | . 3 6 . 20 Peak Tracking Total 20 | . 2 2 . 20 Tactical Retreats 2 | . . 2 . . Traps | -11 -10 -10 -10 -9 ------- Run | Yrd Mat Min Exi Min Traps Triggered 1 | . 1 . . . Indirectly . | . . . . . Trap Hack Attempts . | . . . . . Triggered . | . . . . . Disarmed . | . . . . . Reprogrammed . | . . . . . Reused . | . . . . . Traps Extracted . | . . . . . Installed . | . . . . . Triggered . | . . . . . Machines | -11 -10 -10 -10 -9 ---------- Run | Yrd Mat Min Exi Min Machines Disabled . | . . . . . Max in Single Turn . | . . . . . Machines Repaired . | . . . . . Machines Dismantled . | . . . . . Machines Sabotaged . | . . . . . Overloaded Fab Kills . | . . . . . Hacking | -11 -10 -10 -10 -9 --------- Run | Yrd Mat Min Exi Min Machines Accessed 1 | . . . 1 . Terminals . | . . . . . Fabricators . | . . . . . Repair Stations . | . . . . . Recycling Units . | . . . . . Scanalyzers . | . . . . . Garrison Access . | . . . . . Total Hacks 1 | . . . 1 . Successful 1 | . . . 1 . Failed . | . . . . . Catastrophic . | . . . . . Database Lockouts . | . . . . . Manual 1 | . . . 1 . Terminals . | . . . . . Fabricators . | . . . . . Repair Stations . | . . . . . Recycling Units . | . . . . . Scanalyzers . | . . . . . Garrison Access . | . . . . . Terminal Hacks 1 | . . . 1 . Proto ID Catalog 1 | . . . 1 . Fabricator Hacks . | . . . . . Repair Station Hacks . | . . . . . Recycling Unit Hacks . | . . . . . Scanalyzer . | . . . . . Garrison Access Hacks . | . . . . . Unauthorized Hacks . | . . . . . Terminals . | . . . . . Fabricators . | . . . . . Repair Stations . | . . . . . Recycling Units . | . . . . . Scanalyzers . | . . . . . Garrison Access . | . . . . . Data Cores Recovered . | . . . . . Used . | . . . . . Hacking Detections . | . . . . . Full Trace Events . | . . . . . Feedback Events . | . . . . . Feedback Blocked . | . . . . . Robot Schematics Acquired . | . . . . . Robots Built . | . . . . . Authchips . | . . . . . Time . | . . . . . Total Robot Build Rating . | . . . . . Part Schematics Acquired . | . . . . . Parts Built . | . . . . . Authchips . | . . . . . Time . | . . . . . Total Part Build Rating . | . . . . . Parts Repaired . | . . . . . Time . | . . . . . Parts Recycled . | . . . . . Recycled Matter . | . . . . . Retrieved Matter . | . . . . . Retrieved Components . | . . . . . Parts Scanalyzed . | . . . . . Part Schematics Acquired . | . . . . . Parts Damaged . | . . . . . Bothacking | -11 -10 -10 -10 -9 ------------ Run | Yrd Mat Min Exi Min Used RIF Installer . | . . . . . Robots Hacked . | . . . . . Non-combat . | . . . . . Combat . | . . . . . Robot Hacks Applied . | . . . . . Relay Couplers Released . | . . . . . Fabnet Peak Effective % . | . . . . . Robots Rewired . | . . . . . Allies Hacked . | . . . . . Hacks Repelled . | . . . . . Allies | -11 -10 -10 -10 -9 -------- Run | Yrd Mat Min Exi Min Total Allies . | . . . . . Largest Group . | . . . . . Highest-Rated Group . | . . . . . Highest-Rated Ally . | . . . . . Total Orders . | . . . . . Ally Attacks . | . . . . . Total Damage . | . . . . . Kills . | . . . . . Allies Corrupted . | . . . . . Allies Melted . | . . . . . Intel | -11 -10 -10 -10 -9 ------- Run | Yrd Mat Min Exi Min Active Infowar (turns) 1139 | 54 118 687 263 17 Terrain 1139 | 54 118 687 263 17 Robot Analysis Total . | . . . . . Derelict Logs Recovered 1 | . . 1 . . Drone Launches 1 | . . . . 1 Drone Recoveries . | . . . . . Exploration | -11 -10 -10 -10 -9 ------------- Run | Yrd Mat Min Exi Min Turns Passed 1253 | 95 118 687 263 90 Spaces Moved 1119 | 69 96 596 281 77 Core 2 | 2 . . . . Treads . | . . . . . Legs . | . . . . . Wheels 1117 | 67 96 596 281 77 Hover . | . . . . . Flight . | . . . . . Fastest Speed 50 | 50 90 90 90 90 Average Speed 91 | 87 90 90 91 103 Slowest Speed 110 | 95 90 90 105 110 Overloaded Moves . | . . . . . Propulsion Burnouts . | . . . . . Robots Hopped . | . . . . . Potential Cave-ins . | . . . . . Cave-ins Triggered 1 | . . . . 1 Exploration Rate (%) 41 | 4 27 95 60 20 Regions Visited 4 Branch Regions 3 Pre-discovered Areas 2 | . . 2 . . Known Exits Taken . | . . . . . Unknown Exits Taken 4 | 1 1 1 1 . Scrap Searched 3 | . . 3 . . Spaces Dug . | . . . . . Terrain Destroyed . | . . . . . Melee . | . . . . . Projectile . | . . . . . AOE . | . . . . . Terrain Rammed . | . . . . . Walls Destroyed . | . . . . . Machines Disabled . | . . . . . Actions | -11 -10 -10 -10 -9 --------- Run | Yrd Mat Min Exi Min Total 1284 | 88 110 715 287 84 Wait 84 | 2 3 75 3 1 Move 1115 | 68 95 595 280 77 Hop . | . . . . . Pick Up 15 | 5 3 6 1 . Fast Attach 9 | 7 . 2 . . Attach 3 | . . . . 3 Detach . | . . . . . Swap 9 | . 1 5 1 2 Drop 15 | . . 13 2 . Fire 34 | 6 8 19 . 1 Melee . | . . . . . Ram . | . . . . . Kick . | . . . . . Crush . | . . . . . Escape Stasis . | . . . . . Rewire . | . . . . . Trap . | . . . . . Miscellaneous . | . . . . . Route ------- -11/Scrapyard -10/Materials -10/Mines (discovered 3 exits: [*Mat x2] / *Exi) -10/Exiles -9/Mines History --------- Turn | Location | Event 20 | -11/Scrapyard | Discovered new exit (range 15) 96 | -11/Scrapyard | Entered Materials 138 | -10/Materials | Discovered new exit (range 9) 214 | -10/Materials | Entered Mines 304 | -10/Mines | Discovered new exit (range 11) 316 | -10/Mines | Build established: Mutant 378 | -10/Mines | Learned location of Zion (-7) 470 | -10/Mines | Learned location of Storage (-9) 769 | -10/Mines | Found DCF Scrap (14 items) 851 | -10/Mines | Found a Scrap Suit stashed away for nefarious purposes 854 | -10/Mines | Found Scrap Suit 860 | -10/Mines | Discovered new exit (range 6) 886 | -10/Mines | Discovered new exit (range 11) 896 | -10/Mines | Deemed a non-threat by the Exiles lab entrance 901 | -10/Mines | Entered Exiles 922 | -10/Exiles | Met 8R-AWN 939 | -10/Exiles | Met EX-HEX 965 | -10/Exiles | Met EX-BIN 981 | -10/Exiles | Aligned with FarCom system 982 | -10/Exiles | Given EX-Vault access code 1004 | -10/Exiles | Opened EX-Vault 1018 | -10/Exiles | Found Supersonic Drone Bay 1037 | -10/Exiles | Warned to stay clear of 0b10 Research branches 1043 | -10/Exiles | Exiles lab attacked by MAIN.C 1153 | -10/Exiles | Discovered new exit (range 12) 1155 | -10/Exiles | Build established: Scavenger-Mutant 1164 | -10/Exiles | Left Exiles lab with Supersonic Drone Bay 1164 | -10/Exiles | Entered Mines 1222 | -9/Mines | Assembled infested the area 1229 | -9/Mines | Crushed by falling debris 1229 | -9/Mines | Core integrity fell below 50% 1253 | -9/Mines | Core integrity fell below 20% 1254 | -9/Mines | Destroyed by D-53 Grenadier with Mini Grenade Launcher Last Messages --------------- 01222_ ALERT: Infestation in the mines, dispatching Demolisher response squad. 01228_ C-30 ARC bursts open, deploying its payload. 01228_ D-53 Grenadier unfolds itself. 01229_ The unstable cave ceiling collapses. 01229_ Crushed by falling debris. 01229_ Com. Wheel destroyed. 01229_ System corrupted by crushing effect (+3). 01234_ 5L-KAT destroyed. 01238_ Ion Engine destroyed. 01245_ Beam Cannon destroyed. 01246_ Com. Wheel destroyed. 01247_ Imp. Terrain Scanner destroyed. [Achievement: Hunted] 01251_ as-81508 destroyed. 01252_ The unstable cave ceiling collapses. 01252_ Wheel destroyed. 01252_ Assault Rifle destroyed. 01252_ as-46934 destroyed. 01254_ Trailblazer released from Supersonic Drone Bay. Map ----- +----------------------------------------------------+ | ????????????????????????????????????????????? | | ????????????????????????????????????????????? | | ????????????????????????????????????????????? | | ????????????????????????????????????????????? | | ????????????????????????????????????????????? | | ???????????????????????? ???????????????????? | | ???????????????????????? ???????????????????? | | ?????####??????????????? ???????????????????? | | ?????# ?????????????? ???????????????????? | | ?????# $ ?????????????? #???????????????????? | | ?????#"%#??????????????a#???????????????????? | | ????## $#?????????????? #???????????????????? | | ?????# #?????????????aa#???????????????????? | | ?????# #?????????????a #???????????????????? | | ????## #?????????????aa#???????????????????? | | ????# ###?????????##=%####????????????????? | | ????# #????????? %a #????????????????? | | ????# #?????????#aa"""a #????????????????? | | ????# ########### %""" #????????????????? | | ????# # """ #????????????????? | | ???## # a a #????????????????? | | ??## #### aa ?????????????????? | | ??# ### ???????????????????? | | ?## = d d ##???????????????????? | | ?# % % ##??????????????????? | | ?# @ #????????????????????? | | ?## ##????#???????????????? | | ??## t #????????????????????? | | ???### # #????????????????????? | | ????## #### n #????????????????????? | | ???## ##?# #???????????????????? | | ??## ######## ##???????????????????? | | ??# #?????#####????????????????????? | | ??# #??????????????????????????????? | | ??## ##?????????????????????????????? | | ???###### #?????????????????????????????? | | ????????# #?????????????????????????????? | | ?????#?## ##?????????????????????????????? | | ???????# ##??????????????????????????????? | | ???????# ##???????????????????????????????? | | ???????# #????????????????????????????????? | | ???????# ##???????????????????????????????? | | ??????## ##??????????????????????????????? | | ?????## ##?????????????????????????????? | | ?????# #?????????????????????????????? | | ?????# #?????????????????????????????? | | ????## #?????????????????????????????? | | ????# ## #?????????????????????????????? | | ???# ##? #?????????????????????????????? | | ??# #?? #?????????????????????????????? | +----------------------------------------------------+ Best States ------------- Heat Dissipation 25 Energy Generation 10 Energy Capacity 250 Matter Stores 300 Matter Capacity 300 Sight Range 16 Terrain Scan Range 16 Terrain Scan Density 10 Evasion (%) 44 Item Schematics ----------------- None Robot Schematics ------------------ None Fabricated ------------ Nothing Repaired ---------- Nothing Alien Tech Used ----------------- None Achievements -------------- Hunted Challenges ------------ None Game ------ Seed CoilTerrabombNanoactuators Manual? 0 Play Time 00:14:24 Cumulative 84.6 hours Start 2025.10.09 @ 18:30:35 End 2025.10.09 @ 19:12:54 Sessions 3 Manual Loads 0 Difficulty Rogue Special Mode None Game No. 87 Rogue 87 Adventurer 0 Explorer 0 Win Type - Total 0 Types 0/0/0/0/0/0/0/0/0/0 Lore% 20 Gallery% 40 Achievement% 34 Wizard Run 0 Options --------- Layout 1 ASCII 0 Keyboard 1 Movement Numpad Keybinds 0 Fullscreen 1 Font 32/SmallcapsGlow Map View 77x35 Zoom Use 0% Tactical HUD 1 Map Filters NONE Filters NONE Steam 1 RUN: 069bde89-8dc8-4249-9ae6-30870a2192a7